bitfinex/quotes_BTCUSD_20220405
["timestamp","ask_amount","ask_price","bid_price","bid_amount"]
[1649187174204,0.00053539,45935.0,45930.0,0.01089]
[1649187174302,0.00053539,45935.0,45931.0,0.321618]
[1649187174402,0.00053539,45935.0,45932.0,0.01089]
[1649187174504,0.00053539,45935.0,45930.0,0.01089]
[1649187174752,0.29095843,45935.0,45930.0,0.01089]
[1649187174853,0.34042304,45935.0,45930.0,0.01089]
[1649187175103,0.34042304,45935.0,45931.0,0.01089]
[1649187175204,0.34095844,45935.0,45930.0,0.01089]
[1649187175606,0.34095844,45935.0,45931.0,0.15570936]
[1649187176144,0.34042304,45935.0,45931.0,0.15570936]
[1649187176293,0.34095843,45935.0,45931.0,0.15570936]
[1649187176496,0.34095843,45935.0,45929.0,0.01142547]
[1649187177147,0.34095843,45935.0,45929.0,0.00053547]
[1649187177246,0.34042304,45935.0,45926.0,0.01089]
[1649187177446,0.34042304,45935.0,45929.0,0.00053547]
[1649187177650,0.0005354,45934.0,45929.0,0.00053547]
[1649187178496,0.34042304,45935.0,45926.0,0.01089]
[1649187178601,0.34042304,45935.0,45927.0,0.321618]
[1649187178697,0.34042304,45935.0,45929.0,0.0004968]
[1649187178698,0.00049674,45934.0,45929.0,0.0004968]
[1649187178801,0.00049674,45934.0,45930.0,0.005123]
[1649187179650,0.00049883,45937.0,45930.0,0.005123]
[1649187179751,0.00049883,45937.0,45932.0,0.16206232]
[1649187179870,0.00049883,45937.0,45933.0,0.321574]
[1649187179964,0.00049674,45934.0,45933.0,0.321574]
[1649187180464,0.00049674,45934.0,45929.0,0.0004968]
[1649187180564,0.00049674,45934.0,45930.0,0.321618]
[1649187180866,0.00049883,45937.0,45930.0,0.321618]
[1649187180965,0.00049883,45937.0,45930.0,0.376045]
[1649187181170,0.00049674,45934.0,45930.0,0.376045]
[1649187181617,0.00049674,45934.0,45932.0,0.19268278]
[1649187181818,0.00049674,45934.0,45933.0,0.0051]
[1649187182120,0.00049883,45937.0,45933.0,0.0051]
[1649187182218,0.00049883,45937.0,45932.0,0.19268278]
[1649187182321,0.00048023,45936.0,45930.0,0.054427]
[1649187182423,0.00048023,45936.0,45931.0,0.321618]
[1649187182521,0.00048023,45936.0,45929.0,0.0004803]
[1649187182622,0.00048023,45936.0,45930.0,0.321618]
[1649187182924,0.00048023,45936.0,45929.0,0.0004803]
[1649187183223,0.23422533,45935.0,45929.0,0.0004803]
[1649187183369,0.23422533,45935.0,45926.0,0.01089]
[1649187183370,0.05,45935.0,45926.0,0.01089]
[1649187183471,0.05,45935.0,45929.0,0.0004803]
[1649187183605,0.05048023,45935.0,45929.0,0.0004803]
[1649187183707,0.22561245,45931.0,45929.0,0.0004803]
[1649187183804,0.27561245,45931.0,45929.0,0.0004803]
[1649187184507,0.27561245,45931.0,45926.0,0.49935774]
[1649187184607,0.05,45931.0,45927.0,0.321618]
[1649187184708,0.05,45931.0,45928.0,0.00027232]
[1649187184810,0.05493883,45937.0,45928.0,0.00027232]
[1649187184962,0.26826467,45925.0,45918.0,0.22218627]
[1649187185060,0.26826467,45925.0,45921.0,0.321618]
[1649187185158,0.26826467,45925.0,45924.0,0.01316634]
[1649187185309,0.26826467,45925.0,45924.0,0.01834234]
[1649187187499,0.31826467,45925.0,45924.0,0.01834234]
[1649187188699,0.31826467,45925.0,45924.0,0.005176]
[1649187188804,0.31826467,45925.0,45920.0,1.38646017]
[1649187189004,0.321618,45924.0,45920.0,1.38646017]
[1649187189105,0.69392865,45923.0,45920.0,1.38646017]
[1649187189205,0.321618,45922.0,45920.0,1.38646017]
[1649187189306,0.3435,45923.0,45920.0,1.38646017]
[1649187189307,0.621618,45921.0,45920.0,1.38646017]
[1649187189505,0.59894277,45921.0,45920.0,1.38646017]
[1649187189656,0.64894277,45921.0,45920.0,1.38646017]
[1649187189905,0.94894277,45921.0,45920.0,1.38646017]
[1649187190359,0.64894277,45921.0,45920.0,1.38646017]
[1649187190855,1.01644379,45921.0,45920.0,1.38646017]
[1649187190956,1.17733379,45921.0,45920.0,1.38646017]
[1649187191109,0.80983277,45921.0,45920.0,1.38646017]
[1649187192001,1.10983277,45921.0,45920.0,1.38646017]
[1649187192955,1.15333277,45921.0,45920.0,1.38646017]
[1649187193103,1.81813277,45921.0,45920.0,1.38646017]
[1649187193404,0.85333277,45921.0,45920.0,1.38646017]
[1649187193806,0.576008,45921.0,45920.0,1.38646017]
[1649187193905,0.426008,45921.0,45920.0,1.38646017]
[1649187194004,0.415118,45921.0,45920.0,1.38646017]
[1649187194844,0.68952536,45921.0,45920.0,1.38646017]
[1649187196147,0.469579,45921.0,45920.0,1.38646017]
[1649187196246,0.415118,45921.0,45920.0,1.38646017]
[1649187196645,0.41460068,45921.0,45920.0,1.38646017]
[1649187197150,0.70031875,45921.0,45920.0,1.38646017]
[1649187199044,0.41460068,45921.0,45920.0,1.38646017]
[1649187200151,0.65062096,45921.0,45920.0,1.38646017]
[1649187200752,0.80062096,45921.0,45920.0,1.38646017]
[1649187200851,0.80062096,45921.0,45920.0,1.38146017]
[1649187204398,0.56460068,45921.0,45920.0,1.38146017]
[1649187205400,0.83337981,45921.0,45920.0,1.37146017]
[1649187205702,0.56460068,45921.0,45920.0,1.37146017]
[1649187205951,0.52110068,45921.0,45920.0,1.37028256]
[1649187206108,0.04948268,45921.0,45920.0,1.37028256]
[1649187206308,0.60312787,45925.0,45920.0,1.37028256]
[1649187206404,0.321618,45924.0,45920.0,1.37028256]
[1649187206604,0.421618,45924.0,45920.0,1.37028256]
[1649187206806,0.421618,45924.0,45923.0,0.22615734]
[1649187207008,0.421618,45924.0,45920.0,1.37028256]
[1649187207108,0.1,45924.0,45920.0,1.37028256]
[1649187207559,0.39223787,45925.0,45920.0,1.37028256]
[1649187207659,0.39223787,45925.0,45921.0,0.332508]
[1649187207763,0.39223787,45925.0,45921.0,0.62925589]
[1649187207859,0.39223787,45925.0,45921.0,0.332508]
[1649187208460,0.39223787,45925.0,45921.0,0.327508]
[1649187208565,0.26826467,45925.0,45922.0,0.27542463]
[1649187208662,0.26826467,45925.0,45924.0,0.59137805]
[1649187208761,0.26826467,45925.0,45924.0,0.60226805]
[1649187210509,0.26826467,45925.0,45924.0,0.61327966]
[1649187210710,0.26826467,45925.0,45924.0,0.61327774]
[1649187210811,0.00051497,45933.0,45925.0,1.05]
[1649187210911,0.00051497,45933.0,45926.0,0.124888]
[1649187211009,0.00049883,45937.0,45926.0,0.124888]
[1649187211111,0.00049883,45937.0,45927.0,0.163234]
[1649187211209,0.00049883,45937.0,45928.0,0.327451]
[1649187211310,0.00049883,45937.0,45934.0,0.31698117]
[1649187211410,0.00049883,45937.0,45935.0,0.005168]
[1649187211510,0.00049883,45937.0,45936.0,0.20964042]
[1649187211617,0.00049883,45937.0,45936.0,0.52614242]
[1649187211916,0.00049883,45937.0,45936.0,0.316502]
[1649187212611,0.00049883,45937.0,45936.0,0.62267947]
[1649187214438,0.00049883,45937.0,45936.0,0.63355947]
[1649187214941,0.00049883,45937.0,45936.0,0.16410676]
[1649187215488,0.00049883,45937.0,45936.0,0.17511597]
[1649187215889,0.00049883,45937.0,45936.0,0.47536399]
[1649187219164,0.00049883,45937.0,45936.0,0.77282239]
[1649187219269,0.00049883,45937.0,45936.0,0.85753506]
[1649187219420,0.00049883,45937.0,45936.0,0.77282168]
[1649187219615,0.00049883,45937.0,45936.0,0.47536328]
[1649187221902,0.00049883,45937.0,45936.0,0.76212587]
[1649187222002,0.00049883,45937.0,45936.0,1.0761104]
[1649187222101,0.00051488,45939.0,45937.0,1.6]
[1649187222200,0.00051488,45939.0,45938.0,0.50273166]
[1649187222299,0.00051488,45939.0,45938.0,0.42055602]
[1649187222600,0.00051488,45939.0,45938.0,0.47494112]
[1649187222703,0.00292455,45946.0,45939.0,1.35]
[1649187222803,0.00292455,45946.0,45945.0,0.2]
[1649187222903,0.00292455,45946.0,45945.0,0.21616602]
[1649187223001,0.00292455,45946.0,45945.0,0.54532822]
[1649187223202,0.00292455,45946.0,45945.0,0.64532822]
[1649187223456,0.0051,45960.0,45946.0,1.54]
[1649187223554,0.0051,45960.0,45948.0,0.2]
[1649187223661,0.0051,45960.0,45953.0,0.1067299]
[1649187223754,0.0051,45960.0,45953.0,0.1176099]
[1649187223860,0.0051,45960.0,45953.0,0.1227569]
[1649187224003,0.0051,45960.0,45953.0,0.1662569]
[1649187224507,0.00024165,45956.0,45953.0,0.1662569]
[1649187224705,0.00024165,45956.0,45953.0,0.059527]
[1649187224867,0.00024165,45956.0,45953.0,0.1227569]
[1649187224969,0.00024165,45956.0,45953.0,0.1118769]
[1649187225474,0.25949179,45958.0,45953.0,0.1118769]
[1649187225670,0.52765074,45958.0,45953.0,0.1118769]
[1649187225773,0.05,45958.0,45953.0,0.1118769]
[1649187225973,0.0051,45960.0,45953.0,0.1118769]
[1649187228130,0.0051,45960.0,45953.0,0.1227569]
[1649187229306,0.00055083,45956.0,45953.0,0.1227569]
[1649187230210,0.001,45954.0,45953.0,0.1227569]
[1649187232109,0.00373018,45961.0,45959.0,0.22402576]
[1649187232259,0.00373018,45961.0,45960.0,0.175137]
[1649187232844,0.00373018,45961.0,45960.0,0.4385712]
[1649187233044,0.00373018,45961.0,45960.0,0.2795773]
[1649187233746,0.00373018,45961.0,45960.0,0.2904573]
[1649187235298,0.00373018,45961.0,45960.0,0.2794512]
[1649187235400,0.00373018,45961.0,45960.0,0.29045563]
[1649187235501,0.00373018,45961.0,45960.0,0.6320255]
[1649187235598,0.00373018,45961.0,45960.0,0.43395563]
[1649187235901,0.006,45962.0,45961.0,1.2528093]
[1649187236004,0.006,45962.0,45961.0,1.27982873]
[1649187236113,0.006,45962.0,45961.0,0.17332873]
[1649187236459,0.004,45963.0,45961.0,0.17332873]
[1649187236558,0.004,45963.0,45962.0,0.016014]
[1649187236659,0.004,45963.0,45962.0,0.186014]
[1649187236760,0.004,45963.0,45962.0,0.229514]
[1649187236960,0.0031,45965.0,45962.0,0.229514]
[1649187237064,0.0024,45971.0,45964.0,0.17]
[1649187237161,0.0024,45971.0,45969.0,0.17]
[1649187237260,0.0024,45971.0,45970.0,0.175123]
[1649187240514,0.0024,45971.0,45970.0,0.17]
[1649187241014,0.0024,45971.0,45961.0,0.0028093]
[1649187241115,0.0024,45971.0,45962.0,0.005125]
[1649187241215,0.0024,45971.0,45961.0,0.0028093]
[1649187241316,0.22137372,45966.0,45961.0,0.0028093]
[1649187241418,0.24962817,45964.0,45962.0,0.005129]
[1649187242016,0.29962817,45964.0,45962.0,0.005129]
[1649187242521,0.29962817,45964.0,45961.0,0.0028093]
[1649187242620,0.29962817,45964.0,45962.0,0.005133]
[1649187242716,0.29962817,45964.0,45961.0,0.0028093]
[1649187243611,1.6,45963.0,45960.0,0.0307093]
[1649187243665,0.05,45963.0,45960.0,0.0307093]
[1649187244269,0.6719632,45964.0,45960.0,0.0307093]
[1649187244774,0.01088,45963.0,45947.0,0.31088]
[1649187244878,0.01088,45963.0,45957.0,0.00053205]
[1649187244879,0.32161,45962.0,45957.0,0.00053205]
[1649187244976,0.01088,45961.0,45957.0,0.00053205]
[1649187245080,0.32161,45960.0,45957.0,0.00053205]
[1649187245276,0.32161,45958.0,45957.0,0.00053205]
[1649187245480,0.36511,45958.0,45957.0,0.00053205]
[1649187245576,0.41511,45958.0,45957.0,0.00053205]
[1649187245676,0.83902563,45958.0,45957.0,0.00053205]
[1649187245876,0.83902563,45958.0,45938.0,0.01088]
[1649187245978,0.01088,45957.0,45938.0,0.01088]
[1649187246077,0.03304471,45953.0,45939.0,0.005157]
[1649187246177,0.0435,45956.0,45955.0,0.06188182]
[1649187246376,0.36511,45956.0,45955.0,0.06188182]
[1649187246476,0.0435,45956.0,45955.0,0.06188182]
[1649187246580,0.0935,45956.0,45955.0,0.06188182]
[1649187246876,0.0435,45956.0,45955.0,0.06188182]
[1649187247360,0.05,45958.0,45955.0,0.11627482]
[1649187247459,0.29317715,45960.0,45955.0,0.11627482]
[1649187247559,0.05,45960.0,45955.0,0.11627482]
[1649187247660,0.22264151,45961.0,45955.0,0.40532352]
[1649187247858,0.05,45961.0,45955.0,0.40532352]
[1649187248163,0.01088,45962.0,45955.0,0.40532352]
[1649187248364,0.01088,45965.0,45956.0,0.005143]
[1649187248460,0.01088,45965.0,45956.0,0.108773]
[1649187248563,0.01088,45965.0,45956.0,0.40928578]
[1649187248660,0.24336395,45968.0,45958.0,0.054384]
[1649187248661,0.01139267,45966.0,45958.0,0.054384]
[1649187248764,0.01139267,45966.0,45960.0,0.054385]
[1649187249363,0.01139267,45966.0,45956.0,0.10928578]
[1649187249566,0.01088,45967.0,45956.0,0.108773]
[1649187249768,0.00051269,45966.0,45957.0,0.00051279]
[1649187250115,0.26747496,45966.0,45960.0,0.27897326]
[1649187250217,0.31747496,45966.0,45960.0,0.054387]
[1649187250767,0.05,45966.0,45960.0,0.054387]
[1649187250966,0.00051269,45966.0,45960.0,0.054387]
[1649187251901,0.29336395,45968.0,45962.0,0.26532826]
[1649187252006,0.30424395,45968.0,45962.0,0.26532826]
[1649187252103,0.29336395,45968.0,45962.0,0.26532826]
[1649187252202,0.00051359,45966.0,45962.0,0.26532826]
[1649187252606,0.00051359,45966.0,45960.0,0.054387]
[1649187253004,0.00051359,45966.0,45957.0,0.00051369]
[1649187253107,0.05,45967.0,45956.0,0.108773]
[1649187253304,0.05,45967.0,45957.0,0.00051369]
[1649187253406,0.00051359,45966.0,45957.0,0.00051369]
[1649187253557,0.29145845,45962.0,45957.0,0.00051369]
[1649187253658,0.00051359,45966.0,45957.0,0.00051369]
[1649187253905,0.05,45962.0,45957.0,0.00051369]
[1649187254108,0.00051359,45966.0,45957.0,0.00051369]
[1649187254307,0.00051359,45966.0,45955.0,0.16188182]
[1649187254308,0.05,45967.0,45955.0,0.16188182]
[1649187254408,0.37845508,45966.0,45955.0,0.16188182]
[1649187254507,0.37845508,45966.0,45957.0,0.00027358]
[1649187254709,0.30073545,45961.0,45957.0,0.00027358]
[1649187254860,0.25123149,45960.0,45957.0,0.00027358]
[1649187255159,0.32161,45959.0,45957.0,0.00027358]
[1649187255261,0.45123149,45960.0,45957.0,0.00027358]
[1649187255357,0.01088,45958.0,45957.0,0.00027358]
[1649187255456,0.11088,45959.0,45957.0,0.00027358]
[1649187255560,0.21088,45959.0,45955.0,0.16188182]
[1649187255705,0.21088,45959.0,45956.0,0.00027353]
[1649187256206,0.10883222,45958.0,45956.0,0.00027353]
[1649187256307,0.01088,45957.0,45956.0,0.00027353]
[1649187256507,0.33249,45957.0,45956.0,0.00027353]
[1649187256657,0.47599,45957.0,45956.0,0.00027353]
[1649187256758,0.57599,45957.0,45955.0,0.16188182]
[1649187256860,1.6,45956.0,45941.0,0.3]
[1649187256958,0.04392571,45955.0,45954.0,0.00027354]
[1649187257261,0.15276771,45955.0,45954.0,0.00027354]
[1649187257413,0.56787771,45955.0,45954.0,0.00027354]
[1649187257511,0.61787771,45955.0,45954.0,0.00027354]
[1649187257611,0.71787771,45955.0,45954.0,0.00027354]
[1649187257709,0.39626771,45955.0,45954.0,0.00027354]
[1649187257814,0.71787771,45955.0,45954.0,0.00027354]
[1649187257908,0.71787771,45955.0,45937.0,0.3]
[1649187258008,0.60620516,45954.0,45936.0,0.01088]
[1649187258110,0.28715766,45939.0,45936.0,0.01088]
[1649187258212,0.39057111,45949.0,45945.0,0.00205322]
[1649187258310,0.44057111,45949.0,45945.0,0.00205322]
[1649187258410,0.28278818,45947.0,45945.0,0.00205322]
[1649187258510,0.32161,45947.0,45945.0,0.00205322]
[1649187258655,0.37161,45947.0,45945.0,0.00205322]
[1649187258757,0.05,45947.0,45945.0,0.00205322]
[1649187258856,0.32161,45946.0,45945.0,0.00205322]
[1649187259057,0.32161,45950.0,45945.0,0.00205322]
[1649187259156,0.054424,45951.0,45941.0,0.89093861]
[1649187259357,0.23757994,45943.0,45941.0,0.89093861]
[1649187259457,0.23757994,45943.0,45941.0,0.59318616]
[1649187259657,0.13757994,45943.0,45941.0,0.59318616]
[1649187259755,0.39296309,45951.0,45941.0,0.59318616]
[1649187259756,0.054424,45951.0,45941.0,0.59318616]
[1649187260157,0.10438,45953.0,45941.0,0.59318616]
[1649187260458,0.32161,45951.0,45945.0,0.26997838]
[1649187260561,0.10438,45953.0,45945.0,0.26997838]
[1649187260756,0.4171836,45953.0,45945.0,0.26997838]
[1649187261261,0.4171836,45953.0,45944.0,0.05493904]
[1649187261359,0.4171836,45953.0,45944.0,0.00053204]
[1649187261560,0.4171836,45953.0,45941.0,0.59318616]
[1649187261659,0.5981594,45953.0,45941.0,0.59318616]
[1649187261809,0.32161,45952.0,45946.0,0.00053202]
[1649187262009,0.31661,45952.0,45946.0,0.00053202]
[1649187262357,0.24375845,45950.0,45946.0,0.00053202]
[1649187262461,0.05,45950.0,45946.0,0.00053202]
[1649187262759,0.05,45950.0,45941.0,0.59318616]
[1649187262908,0.25289232,45946.0,45941.0,0.59318616]
[1649187263108,0.30289232,45946.0,45941.0,0.59318616]
[1649187263661,0.30289232,45946.0,45942.0,0.30369434]
[1649187263961,0.30289232,45946.0,45941.0,0.59318616]
[1649187264163,0.30289232,45946.0,45942.0,0.00051203]
[1649187265014,0.30289232,45946.0,45945.0,0.25874355]
[1649187265110,0.30289232,45946.0,45942.0,0.00051203]
[1649187265210,0.30289232,45946.0,45941.0,0.59318616]
[1649187265411,0.30289232,45946.0,45942.0,0.00051203]
[1649187266252,0.30289232,45946.0,45942.0,0.23684211]
[1649187266354,0.30289232,45946.0,45942.0,0.23633008]
[1649187266603,0.30289232,45946.0,45942.0,0.23684347]
[1649187267305,0.30289232,45946.0,45942.0,0.00051339]
[1649187267559,0.30289232,45946.0,45941.0,0.59318616]
[1649187267761,0.30289232,45946.0,45942.0,0.00051339]
[1649187268356,0.30289232,45946.0,45943.0,0.2310245]
[1649187268555,0.30289232,45946.0,45942.0,0.00051339]
[1649187268708,0.30289232,45946.0,45941.0,0.59318616]
[1649187269009,0.30289232,45946.0,45942.0,0.00051338]
[1649187269949,0.30289232,45946.0,45941.0,0.59318616]
[1649187270151,0.30289232,45946.0,45942.0,0.00051291]
[1649187270399,0.30289232,45946.0,45942.0,0.00041291]
[1649187270747,0.30289232,45946.0,45942.0,0.26089779]
[1649187271048,0.30289232,45946.0,45942.0,0.00041291]
[1649187271150,0.30289232,45946.0,45941.0,0.59318616]
[1649187273807,0.30289232,45946.0,45941.0,0.5937367]
[1649187274757,0.30289232,45946.0,45941.0,0.59318616]
[1649187274960,0.30289232,45946.0,45941.0,0.5937367]
[1649187276013,0.30289232,45946.0,45941.0,0.59318616]
[1649187276213,0.24254068,45948.0,45941.0,0.5937367]
[1649187276312,0.29224452,45945.0,45941.0,0.5937367]
[1649187276515,0.321607,45944.0,45941.0,0.5937367]
[1649187276914,0.0435,45943.0,45941.0,0.5937367]
[1649187277014,0.321607,45942.0,45941.0,0.5937367]
[1649187277214,0.425987,45942.0,45941.0,0.59318616]
[1649187277357,0.85466088,45942.0,45941.0,0.59318616]
[1649187277459,1.0122269,45942.0,45941.0,0.59318616]
[1649187277660,0.58355302,45942.0,45941.0,0.59318616]
[1649187278259,0.63355302,45942.0,45941.0,0.59318616]
[1649187278459,0.73355302,45942.0,45941.0,0.59318616]
[1649187278862,0.575987,45942.0,45941.0,0.59318616]
[1649187286903,0.525987,45942.0,45941.0,0.59318616]
[1649187287004,0.425987,45942.0,45941.0,0.59318616]
[1649187287204,1.6,45941.0,45939.0,0.00051095]
[1649187287306,0.332487,45940.0,45939.0,0.00051095]
[1649187287408,0.66909899,45940.0,45939.0,0.00051095]
[1649187287504,0.425987,45940.0,45939.0,0.00051095]
[1649187287604,0.76257103,45940.0,45939.0,0.00051095]
[1649187287710,1.42737103,45940.0,45939.0,0.00051095]
[1649187287805,1.486487,45940.0,45939.0,0.00051095]
[1649187287912,2.71657718,45940.0,45939.0,9.5e-07]
[1649187288008,2.71657718,45940.0,45921.0,0.0324]
[1649187288111,0.2,45932.0,45921.0,0.0324]
[1649187288210,0.23394051,45926.0,45921.0,0.0324]
[1649187288306,0.321607,45925.0,45921.0,0.0324]
[1649187288509,0.321607,45924.0,45921.0,0.0324]
[1649187288614,0.0935,45925.0,45921.0,0.0324]
[1649187288716,0.321607,45924.0,45921.0,0.0324]
[1649187290623,0.321607,45923.0,45921.0,0.0324]
[1649187290718,0.371607,45923.0,45921.0,0.0324]
[1649187291222,0.05,45923.0,45921.0,0.0324]
[1649187291419,0.03306789,45932.0,45921.0,0.26482239]
[1649187291420,0.30525417,45931.0,45921.0,0.26482239]
[1649187291523,0.01089,45931.0,45921.0,0.56482239]
[1649187291623,0.05,45931.0,45922.0,0.010194]
[1649187291724,0.05,45933.0,45922.0,0.010194]
[1649187291821,0.01088,45935.0,45931.0,0.22778959]
[1649187292121,0.01088,45936.0,45931.0,0.22778959]
[1649187292223,0.321607,45935.0,45931.0,0.22778959]
[1649187292361,0.01089,45934.0,45931.0,0.22778959]
[1649187292456,0.05,45934.0,45931.0,0.22778959]
[1649187292559,0.01089,45933.0,45931.0,0.22778959]
[1649187292658,0.01089,45933.0,45932.0,0.28451075]
[1649187292857,0.11088,45939.0,45932.0,0.28451075]
[1649187292958,0.321607,45938.0,45932.0,0.28451075]
[1649187293063,0.421607,45938.0,45932.0,0.28451075]
[1649187293159,0.01088,45937.0,45932.0,0.28451075]
[1649187293260,0.321607,45936.0,45932.0,0.28451075]
[1649187293364,0.332487,45935.0,45932.0,0.28451075]
[1649187293460,0.36554581,45935.0,45932.0,0.28451075]
[1649187293560,0.04393881,45935.0,45932.0,0.28451075]
[1649187293661,0.321607,45934.0,45931.0,0.22778959]
[1649187293759,0.01089,45933.0,45930.0,0.00054967]
[1649187293959,0.01089,45933.0,45927.0,0.108845]
[1649187294161,0.01089,45934.0,45929.0,0.00054967]
[1649187294562,0.03305881,45935.0,45930.0,0.26608756]
[1649187294764,0.321607,45934.0,45932.0,0.27124322]
[1649187295369,0.321607,45934.0,45931.0,0.00054926]
[1649187295768,0.371607,45934.0,45931.0,0.00054926]
[1649187296401,0.371607,45934.0,45924.0,0.29885667]
[1649187296551,0.05,45934.0,45924.0,0.29885667]
[1649187296702,0.2901369,45932.0,45930.0,0.00052873]
[1649187296804,0.371607,45931.0,45930.0,0.00052873]
[1649187296906,0.05,45931.0,45930.0,0.00052873]
[1649187297005,0.371607,45931.0,45930.0,0.00052873]
[1649187297104,0.05,45931.0,45930.0,0.00052873]
[1649187297304,0.03305881,45935.0,45930.0,0.00052873]
[1649187297305,0.08305881,45935.0,45930.0,0.00052873]
[1649187297504,0.321607,45934.0,45930.0,0.00052873]
[1649187297605,0.08305881,45935.0,45925.0,0.59321085]
[1649187297806,0.08305881,45935.0,45930.0,0.00052873]
[1649187298006,0.321607,45934.0,45931.0,0.23114731]
[1649187298108,0.371607,45934.0,45931.0,0.23114731]
[1649187298208,0.08305881,45935.0,45931.0,0.23114731]
[1649187298309,0.321607,45934.0,45931.0,0.23114731]
[1649187298509,0.371607,45934.0,45931.0,0.23114731]
[1649187300404,0.371607,45934.0,45930.0,0.00052164]
[1649187301254,0.27162261,45932.0,45925.0,0.22265315]
[1649187301353,0.05,45932.0,45926.0,0.30802683]
[1649187301457,0.321607,45931.0,45930.0,0.00052164]
[1649187302455,0.23541979,45931.0,45926.0,0.30802683]
[1649187302656,0.05,45930.0,45928.0,0.00052165]
[1649187302758,0.321607,45929.0,45928.0,0.00052165]
[1649187302857,0.05,45932.0,45928.0,0.00052165]
[1649187302956,0.321607,45931.0,45928.0,0.00052165]
[1649187303611,0.321607,45931.0,45926.0,0.30802683]
[1649187303705,0.321607,45933.0,45926.0,0.30802683]
[1649187303804,0.321607,45933.0,45927.0,0.00051143]
[1649187304804,0.321607,45933.0,45926.0,0.30802683]
[1649187305004,0.321607,45933.0,45928.0,0.00051143]
[1649187305809,0.57585476,45933.0,45928.0,0.00051143]
[1649187306007,0.321607,45933.0,45926.0,0.30802683]
[1649187306208,0.03305881,45935.0,45934.0,0.10311293]
[1649187306308,0.35467681,45935.0,45934.0,0.10311293]
[1649187306810,0.51555681,45935.0,45934.0,0.10311293]
[1649187307457,0.321618,45933.0,45926.0,0.30802683]
[1649187307555,0.321618,45933.0,45920.0,1.37028256]
[1649187307556,0.01089,45932.0,45920.0,1.37028256]
[1649187307656,0.321618,45931.0,45920.0,1.37028256]
[1649187307755,0.01089,45930.0,45920.0,1.36392616]
[1649187307908,0.55153582,45929.0,45923.0,0.2903564]
[1649187308007,0.55153582,45929.0,45920.0,1.36392616]
[1649187308206,0.60153582,45929.0,45920.0,1.36392616]
[1649187308408,0.321618,45928.0,45920.0,1.36392616]
[1649187308556,0.321618,45928.0,45924.0,0.27725413]
[1649187308858,0.371618,45928.0,45924.0,0.27725413]
[1649187311012,0.371618,45928.0,45924.0,0.27777857]
[1649187311558,0.64126704,45928.0,45924.0,0.27777857]
[1649187311758,0.371618,45928.0,45924.0,0.27777857]
[1649187312058,0.371618,45928.0,45924.0,0.27725413]
[1649187312257,0.371618,45928.0,45924.0,0.27777857]
[1649187313210,0.05,45928.0,45924.0,0.27725413]
[1649187313312,0.01089,45932.0,45924.0,0.27725413]
[1649187313415,0.321618,45931.0,45924.0,0.27777857]
[1649187313511,0.01089,45930.0,45924.0,0.27777857]
[1649187313613,0.321618,45929.0,45924.0,0.27777857]
[1649187313861,0.371618,45929.0,45924.0,0.00052444]
[1649187314415,0.371618,45929.0,45920.0,1.36392616]
[1649187314613,0.371618,45929.0,45924.0,0.00051328]
[1649187314875,0.22029528,45927.0,45924.0,0.00051328]
[1649187314969,0.321618,45926.0,45924.0,0.00051328]
[1649187315664,0.321618,45926.0,45920.0,1.66580355]
[1649187315763,0.27029528,45927.0,45920.0,1.66580355]
[1649187315764,0.05,45927.0,45920.0,1.66580355]
[1649187315866,0.05,45927.0,45923.0,0.00050152]
[1649187315967,0.01089,45930.0,45923.0,0.00050152]
[1649187315968,0.321618,45926.0,45923.0,0.00050152]
[1649187316066,0.371618,45926.0,45923.0,0.00050152]
[1649187316867,0.61339387,45926.0,45920.0,1.97319888]
[1649187316967,0.29177587,45926.0,45920.0,1.66580355]
[1649187317068,0.29177587,45926.0,45922.0,0.00050152]
[1649187317167,0.321618,45925.0,45922.0,0.00050152]
[1649187317269,0.371618,45925.0,45922.0,0.00050152]
[1649187317367,0.05,45925.0,45922.0,0.00050152]
[1649187317469,0.321618,45924.0,45922.0,0.00050152]
[1649187317872,0.0435,45923.0,45922.0,0.00050152]
[1649187317972,0.365118,45923.0,45922.0,0.00050152]
[1649187318073,0.365118,45923.0,45920.0,1.36392616]
[1649187318223,0.30155784,45922.0,45921.0,0.00050268]
[1649187318322,0.68852884,45922.0,45921.0,0.00050268]
[1649187318424,1.85419627,45922.0,45921.0,0.00050268]
[1649187318526,1.93489627,45922.0,45921.0,0.00050268]
[1649187318625,2.01329114,45922.0,45921.0,0.00050268]
[1649187318777,2.06329114,45922.0,45921.0,0.00050268]
[1649187319026,3.70430463,45922.0,45921.0,0.00050268]
[1649187319276,3.70430463,45922.0,45920.0,1.36392616]
[1649187319376,1.23251216,45921.0,45920.0,1.36392616]
[1649187319475,1.24340216,45921.0,45920.0,1.36392616]
[1649187319576,1.28690216,45921.0,45920.0,1.36392616]
[1649187319876,1.040808,45921.0,45920.0,1.36392616]
[1649187320483,0.376008,45921.0,45920.0,1.36392616]
[1649187323509,1.040808,45921.0,45920.0,1.36392616]
[1649187323808,0.376008,45921.0,45920.0,1.36392616]
[1649187324010,0.321618,45921.0,45920.0,1.36392616]
[1649187324112,1.20929616,45934.0,45920.0,1.36392616]
[1649187324113,0.01089,45929.0,45920.0,1.36392616]
[1649187324215,0.899,45934.0,45921.0,0.3]
[1649187324216,0.321618,45928.0,45921.0,0.3]
[1649187324311,0.01089,45927.0,45921.0,0.3]
[1649187324410,0.321618,45926.0,45921.0,0.3]
[1649187325011,0.321618,45926.0,45922.0,0.24050049]
[1649187325419,0.321618,45926.0,45922.0,0.24098002]
[1649187325510,0.01089,45930.0,45922.0,0.24098002]
[1649187325615,0.321618,45929.0,45922.0,0.24098002]
[1649187326140,0.26311802,45927.0,45922.0,0.00047953]
[1649187326231,0.321618,45926.0,45922.0,0.00047953]
[1649187326429,0.365118,45926.0,45920.0,1.36392616]
[1649187326530,1.5125555,45923.0,45920.0,1.36392616]
[1649187326628,0.321618,45922.0,45920.0,1.36392616]
[1649187326829,0.371618,45922.0,45920.0,1.36392616]
[1649187327235,0.26201509,45921.0,45920.0,1.36392616]
[1649187327333,1.24843309,45921.0,45920.0,1.36392616]
[1649187327432,1.35282309,45921.0,45920.0,1.36392616]
[1649187327581,1.9149103,45921.0,45920.0,1.02609616]
[1649187327680,2.0085603,45921.0,45920.0,1.02609616]
[1649187327781,2.1085603,45921.0,45920.0,0.35620164]
[1649187328280,2.91557587,45921.0,45920.0,0.35620164]
[1649187328380,0.6648,45919.0,45916.0,0.01]
[1649187328482,0.6648,45917.0,45916.0,0.01]
[1649187328582,0.997308,45917.0,45916.0,0.01]